[Event "Titled Tuesday Blitz December 27 Early 2022"]
[White "Mills, Morgen"]
[Black "Zhurbinsky, David"]
[WhiteFideId "2013304"]
[BlackFideId "2072904"]
[WhiteElo "2009"]
[BlackElo "2045"]
[Result "1-0"]
[Round "05"]
[TimeControl "180+2"]
[Date "2022.12.27"]
[WhiteClock "0:00:18"]
[BlackClock "0:00:24"]

1. e4 {[%clk 0:03:00]}  e5 {[%clk 0:02:59]} 2. Nf3 {[%clk 0:03:00]}  Nc6 {[%clk 0:02:59]} 3. Bb5 {[%clk 0:03:01]}  a6 {[%clk 0:02:59]} 4. Bxc6 {[%clk 0:03:01]}  dxc6 {[%clk 0:03:00]} 5. O-O {[%clk 0:03:01]}  Bg4 {[%clk 0:03:00]} 6. h3 {[%clk 0:02:59]}  h5 {[%clk 0:02:59]} 7. d3 {[%clk 0:02:59]}  Qf6 {[%clk 0:02:58]} 8. Nbd2 {[%clk 0:02:58]}  Bc5 {[%clk 0:02:58]} 9. Nc4 {[%clk 0:02:51]}  Bxf3 {[%clk 0:02:48]} 10. Qxf3 {[%clk 0:02:52]}  Qxf3 {[%clk 0:02:48]} 11. gxf3 {[%clk 0:02:53]}  f6 {[%clk 0:02:47]} 12. f4 {[%clk 0:02:52]}  exf4 {[%clk 0:02:42]} 13. Bxf4 {[%clk 0:02:50]}  O-O-O {[%clk 0:02:42]} 14. Be3 {[%clk 0:02:42]}  Bd4 {[%clk 0:02:36]} 15. Bxd4 {[%clk 0:02:38]}  Rxd4 {[%clk 0:02:36]} 16. Ne3 {[%clk 0:02:35]}  Ne7 {[%clk 0:02:34]} 17. f3 {[%clk 0:02:31]}  g5 {[%clk 0:02:30]} 18. Kf2 {[%clk 0:02:24]}  Ng6 {[%clk 0:02:29]} 19. Nf5 {[%clk 0:02:19]}  Rd7 {[%clk 0:02:29]} 20. h4 {[%clk 0:02:15]}  g4 {[%clk 0:02:26]} 21. Rg1 {[%clk 0:02:11]}  Ne5 {[%clk 0:02:22]} 22. fxg4 {[%clk 0:02:02]}  Nxg4+ {[%clk 0:02:22]} 23. Kf3 {[%clk 0:01:56]}  c5 {[%clk 0:02:18]} 24. Ne3 {[%clk 0:01:46]}  Ne5+ {[%clk 0:02:18]} 25. Ke2 {[%clk 0:01:44]}  c6 {[%clk 0:02:17]} 26. Raf1 {[%clk 0:01:44]}  Rf7 {[%clk 0:02:11]} 27. b3 {[%clk 0:01:38]}  Kc7 {[%clk 0:02:05]} 28. Rf5 {[%clk 0:01:38]}  Kd7 {[%clk 0:01:55]} 29. Nc4 {[%clk 0:01:24]}  Nxc4 {[%clk 0:01:53]} 30. bxc4 {[%clk 0:01:25]}  b6 {[%clk 0:01:50]} 31. Rb1 {[%clk 0:01:24]}  b5 {[%clk 0:01:41]} 32. cxb5 {[%clk 0:01:19]}  axb5 {[%clk 0:01:42]} 33. Rxc5 {[%clk 0:01:19]}  Rg7 {[%clk 0:01:39]} 34. Rf1 {[%clk 0:01:14]}  Ra8 {[%clk 0:01:29]} 35. Rxf6 {[%clk 0:00:59]}  Rxa2 {[%clk 0:01:29]} 36. Rfxc6 {[%clk 0:00:55]}  Rg4 {[%clk 0:01:22]} 37. Rh6 {[%clk 0:00:48]}  Rxh4 {[%clk 0:01:21]} 38. Rhxh5 {[%clk 0:00:48]}  Rxc2+ {[%clk 0:01:11]} 39. Rxc2 {[%clk 0:00:41]}  Rxh5 {[%clk 0:01:11]} 40. Ke3 {[%clk 0:00:40]}  Kd6 {[%clk 0:01:09]} 41. Kd4 {[%clk 0:00:40]}  Rh8 {[%clk 0:01:05]} 42. Rc5 {[%clk 0:00:39]}  Rb8 {[%clk 0:01:04]} 43. e5+ {[%clk 0:00:39]}  Ke6 {[%clk 0:01:02]} 44. Rc6+ {[%clk 0:00:39]}  Kd7 {[%clk 0:01:02]} 45. Rd6+ {[%clk 0:00:38]}  Ke7 {[%clk 0:01:02]} 46. Kc3 {[%clk 0:00:38]}  Rh8 {[%clk 0:00:50]} 47. Kb4 {[%clk 0:00:36]}  Rb8 {[%clk 0:00:47]} 48. d4 {[%clk 0:00:35]}  Kf7 {[%clk 0:00:44]} 49. d5 {[%clk 0:00:36]}  Ke7 {[%clk 0:00:43]} 50. Rh6 {[%clk 0:00:35]}  Kf7 {[%clk 0:00:43]} 51. d6 {[%clk 0:00:34]}  Kg7 {[%clk 0:00:37]} 52. Re6 {[%clk 0:00:32]}  Kf7 {[%clk 0:00:36]} 53. Re7+ {[%clk 0:00:33]}  Kf8 {[%clk 0:00:36]} 54. e6 {[%clk 0:00:32]}  Rd8 {[%clk 0:00:36]} 55. Rf7+ {[%clk 0:00:31]}  Kg8 {[%clk 0:00:31]} 56. e7 {[%clk 0:00:27]}  Re8 {[%clk 0:00:30]} 57. Rf5 {[%clk 0:00:25]}  Ra8 {[%clk 0:00:26]} 58. Kxb5 {[%clk 0:00:22]}  Rb8+ {[%clk 0:00:26]} 59. Kc6 {[%clk 0:00:22]}  Kg7 {[%clk 0:00:25]} 60. d7 {[%clk 0:00:22]}  Rb1 {[%clk 0:00:25]} 61. e8=Q {[%clk 0:00:21]}  Rc1+ {[%clk 0:00:26]} 62. Rc5 {[%clk 0:00:20]}  Rd1 {[%clk 0:00:26]} 63. d8=Q {[%clk 0:00:19]}  Rf1 {[%clk 0:00:24]} 64. Qde7+ {[%clk 0:00:19]}  Kh6 {[%clk 0:00:24]} 65. Qh8+ {[%clk 0:00:18]}  Kg6 {[%clk 0:00:24]} 66. Qhg7# {[%clk 0:00:18]} 1-0


[Site "https://www.chess.com"]

[Event "Titled Tuesday Blitz December 27 Early 2022"]
[White "Minko, Dmitry"]
[Black "Hartikainen, Jarmo"]
[WhiteFideId "24188468"]
[BlackFideId "503134"]
[WhiteElo "2247"]
[BlackElo "2108"]
[Result "1-0"]
[Round "05"]
[TimeControl "180+2"]
[Date "2022.12.27"]
[WhiteClock "0:00:05"]
[BlackClock "0:00:05"]

1. e4 {[%clk 0:02:59]}  c5 {[%clk 0:02:59]} 2. Nf3 {[%clk 0:02:58]}  e6 {[%clk 0:02:59]} 3. d4 {[%clk 0:02:59]}  cxd4 {[%clk 0:02:59]} 4. Nxd4 {[%clk 0:02:59]}  Nf6 {[%clk 0:02:59]} 5. Nc3 {[%clk 0:03:00]}  d6 {[%clk 0:03:00]} 6. Be3 {[%clk 0:02:59]}  Be7 {[%clk 0:02:59]} 7. f3 {[%clk 0:02:59]}  O-O {[%clk 0:02:58]} 8. Qd2 {[%clk 0:02:59]}  a6 {[%clk 0:02:58]} 9. O-O-O {[%clk 0:03:00]}  Nbd7 {[%clk 0:02:58]} 10. Kb1 {[%clk 0:03:00]}  Qc7 {[%clk 0:02:57]} 11. g4 {[%clk 0:03:00]}  Ne5 {[%clk 0:02:52]} 12. h4 {[%clk 0:02:58]}  b5 {[%clk 0:02:49]} 13. a3 {[%clk 0:02:34]}  Nc4 {[%clk 0:02:47]} 14. Bxc4 {[%clk 0:02:34]}  bxc4 {[%clk 0:02:48]} 15. h5 {[%clk 0:02:29]}  Rb8 {[%clk 0:02:45]} 16. g5 {[%clk 0:02:28]}  Nd7 {[%clk 0:02:39]} 17. g6 {[%clk 0:02:15]}  Qb7 {[%clk 0:02:34]} 18. b3 {[%clk 0:02:05]}  cxb3 {[%clk 0:02:17]} 19. Nxb3 {[%clk 0:02:05]}  Nc5 {[%clk 0:02:12]} 20. Bxc5 {[%clk 0:02:04]}  dxc5 {[%clk 0:02:12]} 21. h6 {[%clk 0:01:56]}  fxg6 {[%clk 0:01:53]} 22. hxg7 {[%clk 0:01:55]}  Rf7 {[%clk 0:01:51]} 23. Rxh7 {[%clk 0:01:24]}  Rxg7 {[%clk 0:01:02]} 24. Rxg7+ {[%clk 0:01:17]}  Kxg7 {[%clk 0:01:02]} 25. Rh1 {[%clk 0:01:04]}  Bf6 {[%clk 0:00:36]} 26. Qh6+ {[%clk 0:00:47]}  Kf7 {[%clk 0:00:35]} 27. Qh7+ {[%clk 0:00:47]}  Bg7 {[%clk 0:00:27]} 28. Rg1 {[%clk 0:00:17]}  c4 {[%clk 0:00:24]} 29. Qxg6+ {[%clk 0:00:17]}  Kf8 {[%clk 0:00:24]} 30. Rg4 {[%clk 0:00:14]}  Qf7 {[%clk 0:00:19]} 31. Qg5 {[%clk 0:00:07]}  Qf6 {[%clk 0:00:15]} 32. Rf4 {[%clk 0:00:07]}  cxb3 {[%clk 0:00:10]} 33. Rxf6+ {[%clk 0:00:07]}  Bxf6 {[%clk 0:00:10]} 34. Qxf6+ {[%clk 0:00:07]}  Ke8 {[%clk 0:00:11]} 35. cxb3 {[%clk 0:00:06]}  Rxb3+ {[%clk 0:00:10]} 36. Kc2 {[%clk 0:00:06]}  Rb7 {[%clk 0:00:10]} 37. Qh8+ {[%clk 0:00:06]}  Kd7 {[%clk 0:00:10]} 38. e5 {[%clk 0:00:07]}  Rc7 {[%clk 0:00:09]} 39. Kd3 {[%clk 0:00:07]}  Kc6 {[%clk 0:00:09]} 40. Ne4 {[%clk 0:00:07]}  Bd7 {[%clk 0:00:07]} 41. Qf8 {[%clk 0:00:07]}  Kb7 {[%clk 0:00:06]} 42. Nd6+ {[%clk 0:00:06]}  Kc6 {[%clk 0:00:05]} 43. Qb8 {[%clk 0:00:05]} 1-0


[Site "https://www.chess.com"]

[Event "Titled Tuesday Blitz December 27 Early 2022"]
[White "Mohammadian, Mohammad"]
[Black "Araujo, Everson De Moura"]
[WhiteFideId "12566055"]
[BlackFideId "22737197"]
[WhiteElo "1398"]
[BlackElo "1944"]
[Result "0-1"]
[Round "05"]
[TimeControl "180+2"]
[Date "2022.12.27"]
[WhiteClock "0:00:20"]
[BlackClock "0:00:05"]

1. e4 {[%clk 0:03:00]}  e6 {[%clk 0:02:50]} 2. d4 {[%clk 0:02:59]}  d5 {[%clk 0:02:51]} 3. Nd2 {[%clk 0:02:58]}  Nf6 {[%clk 0:02:47]} 4. e5 {[%clk 0:02:58]}  Nfd7 {[%clk 0:02:47]} 5. Bd3 {[%clk 0:02:58]}  c5 {[%clk 0:02:46]} 6. c3 {[%clk 0:02:58]}  Nc6 {[%clk 0:02:45]} 7. Ne2 {[%clk 0:02:58]}  Qb6 {[%clk 0:02:41]} 8. Nf3 {[%clk 0:02:57]}  cxd4 {[%clk 0:02:39]} 9. cxd4 {[%clk 0:02:57]}  Bb4+ {[%clk 0:02:38]} 10. Bd2 {[%clk 0:02:56]}  h6 {[%clk 0:02:34]} 11. O-O {[%clk 0:02:54]}  Bxd2 {[%clk 0:02:33]} 12. Qxd2 {[%clk 0:02:54]}  O-O {[%clk 0:02:32]} 13. Rac1 {[%clk 0:02:50]}  f6 {[%clk 0:02:29]} 14. exf6 {[%clk 0:02:46]}  Nxf6 {[%clk 0:02:30]} 15. Bb1 {[%clk 0:02:41]}  Bd7 {[%clk 0:02:19]} 16. Rc3 {[%clk 0:02:40]}  Rac8 {[%clk 0:02:15]} 17. Rfc1 {[%clk 0:02:39]}  Ne7 {[%clk 0:02:06]} 18. Rxc8 {[%clk 0:02:38]}  Rxc8 {[%clk 0:02:07]} 19. Rxc8+ {[%clk 0:02:37]}  Nxc8 {[%clk 0:02:07]} 20. Ne5 {[%clk 0:02:35]}  Nd6 {[%clk 0:02:06]} 21. Ng3 {[%clk 0:02:21]}  Be8 {[%clk 0:01:59]} 22. Qc2 {[%clk 0:02:11]}  Qd8 {[%clk 0:01:53]} 23. f3 {[%clk 0:02:00]}  Nf7 {[%clk 0:01:52]} 24. Nxf7 {[%clk 0:01:53]}  Bxf7 {[%clk 0:01:53]} 25. Ne2 {[%clk 0:01:47]}  Kh8 {[%clk 0:01:43]} 26. Nf4 {[%clk 0:01:42]}  Qe8 {[%clk 0:01:42]} 27. Ng6+ {[%clk 0:01:38]}  Bxg6 {[%clk 0:01:42]} 28. Qxg6 {[%clk 0:01:38]}  Qxg6 {[%clk 0:01:42]} 29. Bxg6 {[%clk 0:01:37]}  Kg8 {[%clk 0:01:39]} 30. Kf2 {[%clk 0:01:37]}  Kf8 {[%clk 0:01:38]} 31. Ke3 {[%clk 0:01:35]}  Ke7 {[%clk 0:01:38]} 32. h4 {[%clk 0:01:33]}  Kd6 {[%clk 0:01:33]} 33. a3 {[%clk 0:01:32]}  a5 {[%clk 0:01:31]} 34. Kd3 {[%clk 0:01:28]}  b5 {[%clk 0:01:30]} 35. Kc3 {[%clk 0:01:26]}  Nd7 {[%clk 0:01:23]} 36. b4 {[%clk 0:01:25]}  a4 {[%clk 0:01:15]} 37. Bd3 {[%clk 0:01:23]}  Kc6 {[%clk 0:01:14]} 38. Bg6 {[%clk 0:01:20]}  Nf8 {[%clk 0:01:06]} 39. Bd3 {[%clk 0:01:18]}  g5 {[%clk 0:00:58]} 40. hxg5 {[%clk 0:01:16]}  hxg5 {[%clk 0:00:59]} 41. g3 {[%clk 0:01:16]}  Nd7 {[%clk 0:00:57]} 42. f4 {[%clk 0:01:13]}  gxf4 {[%clk 0:00:56]} 43. gxf4 {[%clk 0:01:13]}  Nb6 {[%clk 0:00:57]} 44. f5 {[%clk 0:01:11]}  exf5 {[%clk 0:00:58]} 45. Bxf5 {[%clk 0:01:11]}  Nc4 {[%clk 0:00:58]} 46. Bg6 {[%clk 0:00:59]}  Nxa3 {[%clk 0:00:56]} 47. Be8+ {[%clk 0:00:59]}  Kb6 {[%clk 0:00:53]} 48. Bf7 {[%clk 0:00:57]}  Kc6 {[%clk 0:00:43]} 49. Be8+ {[%clk 0:00:57]}  Kd6 {[%clk 0:00:43]} 50. Kb2 {[%clk 0:00:52]}  Nc4+ {[%clk 0:00:42]} 51. Kc3 {[%clk 0:00:52]}  Na3 {[%clk 0:00:17]} 52. Kb2 {[%clk 0:00:51]}  Nc4+ {[%clk 0:00:16]} 53. Ka2 {[%clk 0:00:45]}  Nd2 {[%clk 0:00:11]} 54. Bxb5 {[%clk 0:00:41]}  Nf3 {[%clk 0:00:11]} 55. Bxa4 {[%clk 0:00:39]}  Nxd4 {[%clk 0:00:12]} 56. Bd1 {[%clk 0:00:37]}  Kc6 {[%clk 0:00:11]} 57. Ka3 {[%clk 0:00:37]}  Kb5 {[%clk 0:00:12]} 58. Ba4+ {[%clk 0:00:35]}  Kc4 {[%clk 0:00:11]} 59. Bd1 {[%clk 0:00:32]}  Nb5+ {[%clk 0:00:11]} 60. Ka4 {[%clk 0:00:31]}  Nc3+ {[%clk 0:00:11]} 61. Ka5 {[%clk 0:00:28]}  Nxd1 {[%clk 0:00:12]} 62. b5 {[%clk 0:00:28]}  Nb2 {[%clk 0:00:02]} 63. Ka6 {[%clk 0:00:25]}  Nd3 {[%clk 0:00:01]} 64. b6 {[%clk 0:00:25]}  Nc5+ {[%clk 0:00:01]} 65. Ka7 {[%clk 0:00:25]}  d4 {[%clk 0:00:02]} 66. b7 {[%clk 0:00:23]}  Nxb7 {[%clk 0:00:01]} 67. Kxb7 {[%clk 0:00:23]}  d3 {[%clk 0:00:02]} 68. Kb6 {[%clk 0:00:23]}  d2 {[%clk 0:00:03]} 69. Kb7 {[%clk 0:00:24]}  d1=Q {[%clk 0:00:03]} 70. Kb6 {[%clk 0:00:25]}  Qd5 {[%clk 0:00:04]} 71. Ka7 {[%clk 0:00:24]}  Qb5 {[%clk 0:00:03]} 72. Ka8 {[%clk 0:00:24]}  Qb2 {[%clk 0:00:03]} 73. Ka7 {[%clk 0:00:24]}  Kc5 {[%clk 0:00:04]} 74. Ka8 {[%clk 0:00:22]}  Kc6 {[%clk 0:00:04]} 75. Ka7 {[%clk 0:00:20]}  Qb7# {[%clk 0:00:05]} 0-1


[Site "https://www.chess.com"]

[Event "Titled Tuesday Blitz December 27 Early 2022"]
[White "Moral Garcia, Serafin"]
[Black "Cardoso Cardoso, Jose Gabriel"]
[WhiteFideId "2201925"]
[BlackFideId "4430492"]
[WhiteElo "2238"]
[BlackElo "2492"]
[Result "1/2-1/2"]
[Round "05"]
[TimeControl "180+2"]
[Date "2022.12.27"]
[WhiteClock "0:00:06"]
[BlackClock "0:00:25"]

1. c4 {[%clk 0:03:00]}  g6 {[%clk 0:03:00]} 2. Nc3 {[%clk 0:02:59]}  Bg7 {[%clk 0:02:59]} 3. g3 {[%clk 0:02:59]}  d6 {[%clk 0:02:59]} 4. Bg2 {[%clk 0:02:59]}  h5 {[%clk 0:02:56]} 5. h4 {[%clk 0:02:58]}  c5 {[%clk 0:02:55]} 6. d3 {[%clk 0:02:56]}  Nc6 {[%clk 0:02:55]} 7. Rb1 {[%clk 0:02:55]}  Nh6 {[%clk 0:02:54]} 8. Bd2 {[%clk 0:02:55]}  Nf5 {[%clk 0:02:54]} 9. a3 {[%clk 0:02:53]}  Rb8 {[%clk 0:02:48]} 10. b4 {[%clk 0:02:51]}  Qd7 {[%clk 0:02:48]} 11. e3 {[%clk 0:02:48]}  b6 {[%clk 0:02:45]} 12. Nge2 {[%clk 0:02:44]}  Bb7 {[%clk 0:02:45]} 13. Nf4 {[%clk 0:02:44]}  Ne5 {[%clk 0:02:43]} 14. O-O {[%clk 0:02:36]}  Bxg2 {[%clk 0:02:40]} 15. Kxg2 {[%clk 0:02:36]}  Qc6+ {[%clk 0:02:39]} 16. f3 {[%clk 0:02:32]}  Bh6 {[%clk 0:02:32]} 17. Qe2 {[%clk 0:01:54]}  e6 {[%clk 0:02:18]} 18. Ne4 {[%clk 0:01:43]}  Bg7 {[%clk 0:02:18]} 19. Bc3 {[%clk 0:01:36]}  O-O {[%clk 0:02:18]} 20. Rfc1 {[%clk 0:01:33]}  d5 {[%clk 0:02:14]} 21. cxd5 {[%clk 0:01:32]}  exd5 {[%clk 0:02:14]} 22. Nd2 {[%clk 0:01:03]}  Qd6 {[%clk 0:02:09]} 23. e4 {[%clk 0:00:44]}  dxe4 {[%clk 0:01:54]} 24. dxe4 {[%clk 0:00:42]}  Nd4 {[%clk 0:01:51]} 25. Bxd4 {[%clk 0:00:40]}  cxd4 {[%clk 0:01:47]} 26. Nd3 {[%clk 0:00:32]}  Rbc8 {[%clk 0:01:43]} 27. Nxe5 {[%clk 0:00:20]}  Qxe5 {[%clk 0:01:44]} 28. Qd3 {[%clk 0:00:20]}  Qe6 {[%clk 0:01:41]} 29. Rc4 {[%clk 0:00:17]}  b5 {[%clk 0:01:31]} 30. Rc5 {[%clk 0:00:15]}  Rxc5 {[%clk 0:01:27]} 31. bxc5 {[%clk 0:00:15]}  a6 {[%clk 0:01:28]} 32. Rc1 {[%clk 0:00:16]}  Rc8 {[%clk 0:01:27]} 33. Nb3 {[%clk 0:00:15]}  Qd7 {[%clk 0:01:07]} 34. Na5 {[%clk 0:00:13]}  Qc7 {[%clk 0:01:05]} 35. Nb3 {[%clk 0:00:13]}  a5 {[%clk 0:01:03]} 36. Qxb5 {[%clk 0:00:12]}  a4 {[%clk 0:01:00]} 37. Qxa4 {[%clk 0:00:12]}  d3 {[%clk 0:01:01]} 38. Qc4 {[%clk 0:00:12]}  Rd8 {[%clk 0:01:01]} 39. Rd1 {[%clk 0:00:12]}  Qe5 {[%clk 0:01:00]} 40. Rxd3 {[%clk 0:00:11]}  Qb2+ {[%clk 0:01:00]} 41. Kh3 {[%clk 0:00:10]}  Ra8 {[%clk 0:00:56]} 42. c6 {[%clk 0:00:08]}  Qb1 {[%clk 0:00:55]} 43. Kg2 {[%clk 0:00:07]}  Be5 {[%clk 0:00:45]} 44. f4 {[%clk 0:00:06]}  Ra4 {[%clk 0:00:23]} 45. Qxa4 {[%clk 0:00:05]}  Qxd3 {[%clk 0:00:23]} 46. fxe5 {[%clk 0:00:05]}  Qe2+ {[%clk 0:00:23]} 47. Kg1 {[%clk 0:00:05]}  Qe1+ {[%clk 0:00:24]} 48. Kg2 {[%clk 0:00:06]}  Qe2+ {[%clk 0:00:24]} 49. Kg1 {[%clk 0:00:06]}  Qe1+ {[%clk 0:00:25]} 50. Kg2 {[%clk 0:00:06]}  Qe2+ {[%clk 0:00:25]} 1/2-1/2


[Site "https://www.chess.com"]

[Event "Titled Tuesday Blitz December 27 Early 2022"]
[White "Moskvin, Anatoly"]
[Black "Jaracz, Pawel"]
[WhiteFideId "24199990"]
[BlackFideId "1102222"]
[WhiteElo "2189"]
[BlackElo "2467"]
[Result "1-0"]
[Round "05"]
[TimeControl "180+2"]
[Date "2022.12.27"]
[WhiteClock "0:00:55"]
[BlackClock "0:00:02"]

1. e4 {[%clk 0:03:00]}  c5 {[%clk 0:02:56]} 2. Nf3 {[%clk 0:03:01]}  Nc6 {[%clk 0:02:55]} 3. Bb5 {[%clk 0:03:00]}  Qb6 {[%clk 0:02:45]} 4. a4 {[%clk 0:02:55]}  e6 {[%clk 0:02:45]} 5. O-O {[%clk 0:02:55]}  a6 {[%clk 0:02:41]} 6. Bxc6 {[%clk 0:02:41]}  bxc6 {[%clk 0:02:38]} 7. a5 {[%clk 0:02:39]}  Qc7 {[%clk 0:02:34]} 8. Re1 {[%clk 0:02:39]}  e5 {[%clk 0:02:20]} 9. d3 {[%clk 0:02:32]}  d6 {[%clk 0:02:18]} 10. h3 {[%clk 0:02:33]}  g6 {[%clk 0:02:12]} 11. Nbd2 {[%clk 0:02:25]}  Bg7 {[%clk 0:02:12]} 12. Nc4 {[%clk 0:02:25]}  Be6 {[%clk 0:02:10]} 13. Nb6 {[%clk 0:02:21]}  Rd8 {[%clk 0:02:08]} 14. c3 {[%clk 0:02:19]}  Ne7 {[%clk 0:02:06]} 15. Ng5 {[%clk 0:02:02]}  Bc8 {[%clk 0:01:58]} 16. f4 {[%clk 0:01:59]}  O-O {[%clk 0:01:52]} 17. Rf1 {[%clk 0:01:54]}  f6 {[%clk 0:01:34]} 18. Qb3+ {[%clk 0:01:45]}  d5 {[%clk 0:01:33]} 19. Nf3 {[%clk 0:01:45]}  Be6 {[%clk 0:01:32]} 20. fxe5 {[%clk 0:01:45]}  fxe5 {[%clk 0:01:24]} 21. Ng5 {[%clk 0:01:39]}  Rxf1+ {[%clk 0:01:24]} 22. Kxf1 {[%clk 0:01:40]}  Qd6 {[%clk 0:01:18]} 23. Be3 {[%clk 0:01:36]}  Rf8+ {[%clk 0:00:46]} 24. Kg1 {[%clk 0:01:36]}  Bh6 {[%clk 0:00:46]} 25. Rd1 {[%clk 0:01:19]}  Kh8 {[%clk 0:00:15]} 26. c4 {[%clk 0:01:03]}  d4 {[%clk 0:00:14]} 27. Bc1 {[%clk 0:01:02]}  Bg8 {[%clk 0:00:09]} 28. Qc2 {[%clk 0:00:57]}  Qf6 {[%clk 0:00:08]} 29. Nf3 {[%clk 0:00:57]}  Bxc1 {[%clk 0:00:07]} 30. Qxc1 {[%clk 0:00:58]}  Kg7 {[%clk 0:00:07]} 31. Nd7 {[%clk 0:00:54]}  Qd6 {[%clk 0:00:02]} 32. Nxf8 {[%clk 0:00:54]}  Kxf8 {[%clk 0:00:02]} 33. Qg5 {[%clk 0:00:55]} 1-0


[Site "https://www.chess.com"]

[Event "Titled Tuesday Blitz December 27 Early 2022"]
[White "Movahed, Sina"]
[Black "Aravindh, Chithambaram VR."]
[WhiteFideId "42520835"]
[BlackFideId "5072786"]
[WhiteElo "2340"]
[BlackElo "2633"]
[Result "1-0"]
[Round "05"]
[TimeControl "180+2"]
[Date "2022.12.27"]
[WhiteClock "0:00:40"]
[BlackClock "0:00:01"]

1. Nf3 {[%clk 0:03:00]}  Nc6 {[%clk 0:02:59]} 2. d4 {[%clk 0:02:59]}  d5 {[%clk 0:02:57]} 3. g3 {[%clk 0:02:59]}  g6 {[%clk 0:02:54]} 4. Bg2 {[%clk 0:02:59]}  Bg7 {[%clk 0:02:55]} 5. O-O {[%clk 0:03:00]}  h5 {[%clk 0:02:53]} 6. c4 {[%clk 0:02:56]}  dxc4 {[%clk 0:02:42]} 7. d5 {[%clk 0:02:55]}  Ne5 {[%clk 0:02:42]} 8. Nxe5 {[%clk 0:02:54]}  Bxe5 {[%clk 0:02:43]} 9. Na3 {[%clk 0:02:54]}  h4 {[%clk 0:02:40]} 10. Nxc4 {[%clk 0:02:54]}  Bf6 {[%clk 0:02:40]} 11. e4 {[%clk 0:02:52]}  b5 {[%clk 0:02:19]} 12. Na5 {[%clk 0:02:43]}  Bd7 {[%clk 0:01:51]} 13. Qe2 {[%clk 0:02:27]}  hxg3 {[%clk 0:01:42]} 14. hxg3 {[%clk 0:02:25]}  Bd4 {[%clk 0:01:27]} 15. e5 {[%clk 0:02:11]}  Bb6 {[%clk 0:01:23]} 16. b4 {[%clk 0:01:43]}  Qc8 {[%clk 0:01:08]} 17. e6 {[%clk 0:01:42]}  fxe6 {[%clk 0:01:08]} 18. dxe6 {[%clk 0:01:43]}  Bxe6 {[%clk 0:01:09]} 19. Bb2 {[%clk 0:01:36]}  Rh5 {[%clk 0:00:49]} 20. Be4 {[%clk 0:01:18]}  Kf7 {[%clk 0:00:40]} 21. Qf3+ {[%clk 0:01:14]}  Nf6 {[%clk 0:00:32]} 22. Bxf6 {[%clk 0:01:10]}  exf6 {[%clk 0:00:30]} 23. Bxa8 {[%clk 0:01:11]}  Bg4 {[%clk 0:00:26]} 24. Qb3+ {[%clk 0:00:56]}  Kg7 {[%clk 0:00:25]} 25. Bg2 {[%clk 0:00:56]}  Bh3 {[%clk 0:00:21]} 26. Qf3 {[%clk 0:00:53]}  Bg4 {[%clk 0:00:13]} 27. Qf4 {[%clk 0:00:53]}  g5 {[%clk 0:00:09]} 28. Qe4 {[%clk 0:00:52]}  Bf5 {[%clk 0:00:07]} 29. Qe7+ {[%clk 0:00:51]}  Kg6 {[%clk 0:00:07]} 30. Nc6 {[%clk 0:00:47]}  Rh7 {[%clk 0:00:03]} 31. Qe2 {[%clk 0:00:43]}  Qf8 {[%clk 0:00:02]} 32. Rfe1 {[%clk 0:00:43]}  Bd7 {[%clk 0:00:01]} 33. Ne7+ {[%clk 0:00:42]}  Kg7 {[%clk 0:00:01]} 34. Qd3 {[%clk 0:00:40]} 1-0


[Site "https://www.chess.com"]

[Event "Titled Tuesday Blitz December 27 Early 2022"]
[White "Musovic, Armin"]
[Black "Zaichenko, Daria"]
[WhiteFideId "939935"]
[BlackFideId "4197453"]
[WhiteElo "2261"]
[BlackElo "2104"]
[Result "1-0"]
[Round "05"]
[TimeControl "180+2"]
[Date "2022.12.27"]
[WhiteClock "0:00:32"]
[BlackClock "0:00:55"]

1. a3 {[%clk 0:03:00]}  d5 {[%clk 0:02:56]} 2. Nc3 {[%clk 0:03:01]}  d4 {[%clk 0:02:54]} 3. Ne4 {[%clk 0:03:00]}  f5 {[%clk 0:02:53]} 4. Ng3 {[%clk 0:03:00]}  e5 {[%clk 0:02:54]} 5. e4 {[%clk 0:03:01]}  f4 {[%clk 0:02:39]} 6. Qh5+ {[%clk 0:02:58]}  g6 {[%clk 0:02:25]} 7. Qxe5+ {[%clk 0:02:57]}  Qe7 {[%clk 0:02:25]} 8. Qxh8 {[%clk 0:02:49]}  Nf6 {[%clk 0:02:24]} 9. d3 {[%clk 0:02:41]}  fxg3 {[%clk 0:02:21]} 10. hxg3 {[%clk 0:02:38]}  Nbd7 {[%clk 0:02:10]} 11. Bh6 {[%clk 0:02:30]}  b6 {[%clk 0:01:58]} 12. O-O-O {[%clk 0:02:22]}  Bb7 {[%clk 0:01:55]} 13. e5 {[%clk 0:02:13]}  O-O-O {[%clk 0:01:39]} 14. exf6 {[%clk 0:01:34]}  Bxh6+ {[%clk 0:01:26]} 15. Rxh6 {[%clk 0:01:35]}  Nxf6 {[%clk 0:01:26]} 16. Qxd8+ {[%clk 0:01:29]}  Kxd8 {[%clk 0:01:22]} 17. Nf3 {[%clk 0:01:28]}  Bxf3 {[%clk 0:01:16]} 18. gxf3 {[%clk 0:01:28]}  Ng4 {[%clk 0:01:07]} 19. Rh4 {[%clk 0:01:18]}  Nxf2 {[%clk 0:01:07]} 20. Rxd4+ {[%clk 0:01:09]}  Kc8 {[%clk 0:00:58]} 21. Re4 {[%clk 0:00:40]}  Nxe4 {[%clk 0:00:57]} 22. dxe4 {[%clk 0:00:36]}  Qg5+ {[%clk 0:00:57]} 23. Kb1 {[%clk 0:00:36]}  Qxg3 {[%clk 0:00:56]} 24. Ba6+ {[%clk 0:00:35]}  Kb8 {[%clk 0:00:55]} 25. Rd8# {[%clk 0:00:32]} 1-0


[Site "https://www.chess.com"]

[Event "Titled Tuesday Blitz December 27 Early 2022"]
[White "Najdin, Danil"]
[Black "Bashirli, Saadat"]
[WhiteFideId "4172426"]
[BlackFideId "13429990"]
[WhiteElo "2235"]
[BlackElo "1571"]
[Result "0-1"]
[Round "05"]
[TimeControl "180+2"]
[Date "2022.12.27"]
[WhiteClock "0:00:23"]
[BlackClock "0:00:52"]

1. e4 {[%clk 0:02:54]}  c5 {[%clk 0:03:00]} 2. Nf3 {[%clk 0:02:53]}  g6 {[%clk 0:03:00]} 3. d4 {[%clk 0:02:52]}  cxd4 {[%clk 0:03:01]} 4. Nxd4 {[%clk 0:02:52]}  Nc6 {[%clk 0:03:01]} 5. Nc3 {[%clk 0:02:48]}  Nf6 {[%clk 0:03:02]} 6. Be3 {[%clk 0:02:47]}  Bg7 {[%clk 0:03:02]} 7. Bc4 {[%clk 0:02:41]}  O-O {[%clk 0:03:00]} 8. Bb3 {[%clk 0:02:41]}  a5 {[%clk 0:02:57]} 9. Ndb5 {[%clk 0:02:18]}  a4 {[%clk 0:02:50]} 10. Nxa4 {[%clk 0:02:15]}  Rxa4 {[%clk 0:02:43]} 11. Bxa4 {[%clk 0:02:12]}  Qa5+ {[%clk 0:02:43]} 12. Nc3 {[%clk 0:02:05]}  Nxe4 {[%clk 0:02:40]} 13. Bxc6 {[%clk 0:02:03]}  Nxc3 {[%clk 0:02:32]} 14. Qd2 {[%clk 0:01:52]}  dxc6 {[%clk 0:02:26]} 15. O-O {[%clk 0:01:51]}  Rd8 {[%clk 0:02:17]} 16. Qe1 {[%clk 0:01:47]}  Bg4 {[%clk 0:01:57]} 17. Bd2 {[%clk 0:01:26]}  Rxd2 {[%clk 0:01:35]} 18. h3 {[%clk 0:01:04]}  Ne2+ {[%clk 0:01:26]} 19. Kh1 {[%clk 0:01:00]}  Qh5 {[%clk 0:01:04]} 20. Qxd2 {[%clk 0:00:23]}  Bxh3 {[%clk 0:00:55]} 21. f3 {[%clk 0:00:23]}  Bg4# {[%clk 0:00:52]} 0-1


[Site "https://www.chess.com"]